bitfinex/quotes_BTCUSD_20230405
["timestamp","ask_amount","ask_price","bid_price","bid_amount"]
[1680702598623,0.33271056,28357.0,28356.0,0.12854711]
[1680702598858,0.53813744,28357.0,28356.0,0.002]
[1680702599051,0.38523156,28357.0,28356.0,0.002]
[1680702599674,0.62872913,28357.0,28356.0,0.002]
[1680702599999,0.46813156,28357.0,28356.0,0.002]
[1680702600209,0.56155156,28357.0,28356.0,0.002]
[1680702600421,0.38411556,28357.0,28356.0,0.08640298]
[1680702600633,0.33271056,28357.0,28356.0,0.08640298]
[1680702600835,0.38956256,28357.0,28356.0,0.08640298]
[1680702601048,0.33271056,28357.0,28356.0,0.4883309]
[1680702601289,0.33271056,28357.0,28356.0,0.08658298]
[1680702601496,0.33292056,28357.0,28356.0,0.07820298]
[1680702601696,0.38685056,28357.0,28356.0,0.07820298]
[1680702605100,0.33292056,28357.0,28356.0,0.20475009]
[1680702605637,0.33292056,28357.0,28356.0,0.07820298]
[1680702605851,0.52657421,28357.0,28356.0,0.07820298]
[1680702606071,0.38840856,28357.0,28355.0,0.12666711]
[1680702606284,0.50639602,28357.0,28355.0,0.12654711]
[1680702606517,0.051264,28356.0,28355.0,0.12654711]
[1680702606733,0.40597456,28356.0,28354.0,0.12672711]
[1680702606943,0.00021,28357.0,28355.0,0.12654711]
[1680702607159,0.20987294,28357.0,28355.0,0.12654711]
[1680702607396,0.17634,28356.0,28355.0,0.29489856]
[1680702607602,0.15530094,28357.0,28355.0,0.29507856]
[1680702607833,0.14659094,28357.0,28355.0,0.63325697]
[1680702608042,0.019,28357.0,28356.0,0.29489856]
[1680702608268,0.16884821,28360.0,28356.0,0.50382203]
[1680702608504,0.16905821,28360.0,28357.0,0.12665835]
[1680702608728,0.35471056,28359.0,28357.0,0.12665835]
[1680702608954,0.35492056,28359.0,28356.0,0.63048038]
[1680702609160,0.35492056,28359.0,28357.0,0.12665835]
[1680702609360,0.35492056,28359.0,28357.0,0.56397674]
[1680702609895,0.50830413,28359.0,28357.0,0.56397674]
[1680702610082,0.50830413,28359.0,28357.0,0.12665835]
[1680702610732,0.52730413,28359.0,28356.0,0.2971298]
[1680702610931,0.17632,28357.0,28356.0,0.2950098]
[1680702611130,0.53103056,28357.0,28356.0,0.2951298]
[1680702611382,0.53103056,28357.0,28356.0,0.16853145]
[1680702611648,0.53103056,28357.0,28356.0,0.16835145]
[1680702611835,0.55003056,28357.0,28356.0,0.29704045]
[1680702612011,0.69538661,28357.0,28356.0,0.29722045]
[1680702612213,0.74799961,28357.0,28356.0,0.29722045]
[1680702612436,0.69538661,28357.0,28356.0,0.128869]
[1680702612667,0.74688061,28357.0,28356.0,0.128689]
[1680702612819,0.75538061,28357.0,28356.0,0.21315171]
[1680702613016,0.75559061,28357.0,28356.0,0.08646271]
[1680702613219,0.75559061,28357.0,28356.0,0.21315171]
[1680702613220,0.75538061,28357.0,28356.0,0.21315171]
[1680702613419,0.75559061,28357.0,28356.0,0.21315171]
[1680702613798,0.75559061,28357.0,28356.0,0.08646271]
[1680702614016,0.75538061,28357.0,28356.0,0.21315171]
[1680702614198,0.75559061,28357.0,28356.0,0.21315171]
[1680702615277,0.75559061,28357.0,28356.0,0.128689]
[1680702615468,0.75538061,28357.0,28356.0,0.128689]
[1680702615910,0.70388661,28357.0,28356.0,0.128689]
[1680702616432,0.75765161,28357.0,28356.0,0.128689]
[1680702616638,0.37371056,28357.0,28356.0,0.60179598]
[1680702616876,0.37392056,28357.0,28356.0,0.72848923]
[1680702617610,0.37392056,28357.0,28356.0,0.60179598]
[1680702617814,0.37392056,28357.0,28356.0,0.72848525]
[1680702618024,0.37392056,28357.0,28356.0,0.60179598]
[1680702618276,0.37392056,28357.0,28356.0,0.72848485]
[1680702618475,0.37392056,28357.0,28356.0,0.60179598]
[1680702621081,0.37392056,28357.0,28356.0,0.72847948]
[1680702621467,0.37392056,28357.0,28356.0,0.60179598]
[1680702622101,0.55024056,28357.0,28356.0,0.17035145]
[1680702622517,0.55003056,28357.0,28356.0,0.12868738]
[1680702622722,0.75534551,28357.0,28356.0,0.12868738]
[1680702623610,0.83754551,28357.0,28356.0,0.12868738]
[1680702623833,0.84604551,28357.0,28356.0,0.12868738]
[1680702624699,0.84604551,28357.0,28356.0,0.21315415]
[1680702624907,0.84604551,28357.0,28356.0,0.21327415]
[1680702625132,0.38212624,28357.0,28356.0,0.55642199]
[1680702625350,0.37362624,28357.0,28356.0,0.55642199]
[1680702625591,0.37362624,28357.0,28356.0,0.76773615]
[1680702625798,0.37362624,28357.0,28356.0,0.55699166]
[1680702628401,0.51273343,28357.0,28356.0,0.17110112]
[1680702628614,0.56575743,28357.0,28356.0,0.17110112]
[1680702629536,0.51273343,28357.0,28356.0,0.17110112]
[1680702629750,0.56376243,28357.0,28356.0,0.17110112]
[1680702630348,0.51273343,28357.0,28356.0,0.17110112]
[1680702630557,0.51273343,28357.0,28356.0,0.21292466]
[1680702632473,0.54353949,28357.0,28356.0,0.21292466]
[1680702632619,0.59904849,28357.0,28356.0,0.21292466]
[1680702633240,0.55203949,28357.0,28356.0,0.21292466]
[1680702633668,0.54353949,28357.0,28356.0,0.21292466]
[1680702633873,0.4044323,28357.0,28356.0,0.21350822]
[1680702634082,0.4044323,28357.0,28356.0,0.00218]
[1680702634298,0.4044323,28357.0,28356.0,0.00212]
[1680702635345,0.4044323,28357.0,28356.0,0.33932869]
[1680702635550,0.4044323,28357.0,28356.0,0.00218]
[1680702635761,0.4555213,28357.0,28356.0,0.21334068]
[1680702635972,0.4044323,28357.0,28356.0,0.00218]
[1680702636184,0.4044323,28357.0,28356.0,0.002]
[1680702636388,0.4044323,28357.0,28356.0,0.00212]
[1680702637259,0.4044323,28357.0,28356.0,0.39264335]
[1680702637260,0.04980606,28357.0,28356.0,0.39264335]
[1680702637655,0.04980606,28357.0,28356.0,0.39276335]
[1680702638312,0.019,28357.0,28356.0,0.39276335]
[1680702638538,0.019,28357.0,28356.0,0.39264335]
[1680702639370,0.04930146,28357.0,28356.0,0.39264335]
[1680702639579,0.04930146,28357.0,28356.0,0.39276335]
[1680702640607,0.48621202,28357.0,28356.0,0.21333179]
[1680702640818,0.71784436,28357.0,28356.0,0.21351179]
[1680702641060,0.71784436,28357.0,28356.0,0.38258307]
[1680702641275,0.53816702,28357.0,28356.0,0.21351179]
[1680702641495,0.45596702,28357.0,28356.0,0.21351179]
[1680702641713,0.64263117,28357.0,28356.0,0.171249]
[1680702641926,0.72568117,28357.0,28356.0,0.171129]
[1680702642227,0.72574117,28357.0,28356.0,0.171069]
[1680702642437,0.67378617,28357.0,28356.0,0.21333179]
[1680702642643,0.72804917,28357.0,28356.0,0.17106804]
[1680702642869,0.72804917,28357.0,28356.0,0.21333179]
[1680702643280,0.67378617,28357.0,28356.0,0.38239919]
[1680702643406,0.59060868,28357.0,28356.0,0.21351179]
[1680702643617,0.59060868,28357.0,28356.0,0.1711902]
[1680702643823,0.40394453,28357.0,28356.0,0.21345179]
[1680702645048,0.40394453,28357.0,28356.0,0.38252004]
[1680702645246,0.45731453,28357.0,28356.0,0.17124825]
[1680702645450,0.40394453,28357.0,28356.0,0.38252004]
[1680702645769,0.40394453,28357.0,28356.0,0.38258004]
[1680702646751,0.40394453,28357.0,28356.0,0.59851819]
[1680702647128,0.04923397,28357.0,28356.0,0.59851819]
[1680702647328,0.04923397,28357.0,28356.0,0.3870064]
[1680702649744,0.04923397,28357.0,28356.0,0.00218]
[1680702649953,0.55703654,28357.0,28356.0,0.21332325]
[1680702650191,0.55703654,28357.0,28356.0,0.21350325]
[1680702650192,0.40394453,28357.0,28356.0,0.21350325]
[1680702650399,0.40394453,28357.0,28356.0,0.21350213]
[1680702650602,0.40394453,28357.0,28356.0,0.00218]
[1680702652019,0.40394453,28357.0,28356.0,0.34403975]
[1680702652973,0.40394453,28357.0,28356.0,0.00218]
[1680702653320,0.40394453,28357.0,28356.0,0.002]
[1680702653539,0.40394453,28357.0,28356.0,0.00218]
[1680702653743,0.40394453,28357.0,28356.0,0.21351891]
[1680702655362,0.58694492,28357.0,28356.0,0.21351891]
[1680702655566,0.63669492,28357.0,28356.0,0.38259509]
[1680702655741,0.62799453,28357.0,28356.0,0.12899322]
[1680702655940,0.99720453,28357.0,28356.0,0.0865456]
[1680702656165,0.97827202,28357.0,28356.0,0.0845456]
[1680702656337,0.97827202,28357.0,28356.0,0.0845466]
[1680702656742,1.00527202,28357.0,28355.0,0.0845466]
[1680702657106,1.12624956,28356.0,28355.0,0.0845466]
[1680702657927,1.12809535,28356.0,28355.0,0.07146028]
[1680702658178,1.24426219,28356.0,28355.0,0.07146028]
[1680702658408,1.55926219,28356.0,28354.0,0.00012]
[1680702658601,0.77822556,28355.0,28352.0,0.12693322]
[1680702658852,0.0829,28353.0,28352.0,0.12681322]
[1680702659075,0.48924756,28353.0,28352.0,0.12681322]
[1680702659286,0.58064756,28353.0,28352.0,0.12693322]
[1680702659496,0.58064756,28353.0,28351.0,0.2960694]
[1680702659709,0.52041056,28352.0,28351.0,0.2960694]
[1680702659917,0.58030856,28352.0,28351.0,0.2960694]
[1680702660157,0.58030856,28352.0,28351.0,0.16925618]
[1680702660594,0.58030856,28352.0,28351.0,0.12684853]
[1680702660595,0.68796042,28352.0,28351.0,0.12684853]
[1680702660780,0.68796042,28352.0,28350.0,0.31768471]
[1680702661028,1.12223356,28351.0,28350.0,0.31768471]
[1680702661828,1.12244356,28351.0,28350.0,0.14842853]
[1680702662035,1.12223356,28351.0,28350.0,0.14842853]
[1680702662432,1.25091342,28351.0,28350.0,0.14842853]
[1680702663054,1.25091342,28351.0,28350.0,0.0217]
[1680702663055,1.65112342,28351.0,28350.0,0.0217]
[1680702663645,1.49266342,28351.0,28350.0,0.0217]
[1680702664258,1.51966342,28351.0,28350.0,0.0217]
[1680702664515,1.67814342,28351.0,28350.0,0.0217]
[1680702664918,1.99314342,28351.0,28350.0,0.0217]
[1680702665155,2.01076213,28351.0,28350.0,0.0217]
[1680702665724,1.98376213,28351.0,28350.0,0.0217]
[1680702665926,2.01076213,28351.0,28350.0,0.0217]
[1680702666179,1.69576213,28351.0,28350.0,0.0217]
[1680702666335,1.69576213,28351.0,28346.0,0.0217]
[1680702666336,1.90676213,28351.0,28346.0,0.0217]
[1680702666551,1.90676213,28351.0,28344.0,0.0217]
[1680702666552,0.369,28346.0,28344.0,0.0217]
[1680702666743,1.09142537,28345.0,28344.0,0.0217]
[1680702667098,1.12272856,28345.0,28344.0,0.0217]
[1680702668799,1.28656755,28345.0,28344.0,0.0217]
[1680702669002,1.31356755,28345.0,28344.0,0.0217]
[1680702669463,1.34196381,28345.0,28344.0,0.01828857]
[1680702669663,1.32754731,28345.0,28344.0,0.01828857]
[1680702670900,1.27812482,28345.0,28344.0,0.01828857]
[1680702671326,1.43969775,28345.0,28344.0,0.01490567]
[1680702671542,1.27812482,28345.0,28344.0,0.01490567]
[1680702671754,1.27812482,28345.0,28344.0,0.01482303]
[1680702671966,1.27812482,28345.0,28344.0,3.03e-06]
[1680702671967,1.4470583,28345.0,28344.0,3.03e-06]
[1680702672178,1.60036853,28345.0,28344.0,3.03e-06]
[1680702672390,1.60036853,28345.0,28341.0,0.0217]
[1680702672665,0.80661056,28342.0,28341.0,0.0217]
[1680702672896,0.85652856,28342.0,28341.0,0.0217]
[1680702673124,0.86502856,28342.0,28341.0,0.0217]
[1680702673337,0.86502856,28342.0,28341.0,0.01835944]
[1680702673764,1.0255111,28342.0,28341.0,0.01835944]
[1680702674002,0.98589067,28342.0,28341.0,0.01835944]
[1680702674209,1.06879067,28342.0,28341.0,0.01835944]
[1680702674417,1.12893774,28342.0,28341.0,0.01504473]
[1680702674623,1.33993774,28342.0,28341.0,0.01504473]
[1680702675516,1.33993774,28342.0,28341.0,0.01175567]
[1680702675719,1.65493774,28342.0,28341.0,0.01175567]
[1680702675924,1.62733774,28342.0,28341.0,0.01175567]
[1680702676139,1.65433774,28342.0,28341.0,0.01175567]
[1680702676351,0.00849276,28341.0,28338.0,0.0217]
[1680702676569,1.06490056,28339.0,28338.0,0.0217]
[1680702676795,1.11798856,28339.0,28338.0,0.0217]
[1680702677003,1.12648856,28339.0,28338.0,0.0217]
[1680702677216,1.04428856,28339.0,28338.0,0.0217]
[1680702677426,1.04428856,28339.0,28338.0,0.0184806]
[1680702677696,1.07128856,28339.0,28338.0,0.0184806]
[1680702678336,1.07128856,28339.0,28338.0,0.01529267]
[1680702678337,0.46667791,28339.0,28338.0,0.01529267]
[1680702678963,0.63723004,28339.0,28338.0,0.01529267]
[1680702681578,0.46667791,28339.0,28338.0,0.01529267]
[1680702681791,0.41358991,28339.0,28338.0,0.43456746]
[1680702681992,0.41358991,28339.0,28338.0,0.43474746]
[1680702682396,0.38658991,28339.0,28338.0,0.43474746]
[1680702682633,0.41358991,28339.0,28338.0,0.43474746]
[1680702682888,0.38658991,28339.0,28338.0,0.43474746]
[1680702683085,0.05887935,28339.0,28338.0,0.51764746]
[1680702683928,0.03187935,28339.0,28338.0,0.51764746]
[1680702684155,0.04487935,28339.0,28338.0,0.51864746]
[1680702684361,0.013,28339.0,28338.0,0.51864746]
[1680702685383,0.16385961,28342.0,28338.0,0.51764746]
[1680702685587,0.51857017,28342.0,28339.0,0.0829]
[1680702685788,0.049617,28341.0,28339.0,0.08308]
[1680702685999,0.23024349,28341.0,28339.0,0.08308]
[1680702686198,0.050109,28340.0,28339.0,0.08308]
[1680702686408,0.03498191,28340.0,28339.0,0.08308]
[1680702686617,0.08837791,28340.0,28339.0,0.08308]
[1680702686961,0.03498191,28340.0,28339.0,0.08308]
[1680702687155,0.05498191,28340.0,28339.0,0.41214033]
[1680702687361,0.03498191,28340.0,28339.0,0.41214033]
[1680702688637,0.05498191,28340.0,28339.0,0.41214033]
[1680702690208,0.10635491,28340.0,28339.0,0.41214033]
[1680702691021,0.05498191,28340.0,28339.0,0.32924033]
[1680702691220,0.05498191,28340.0,28339.0,0.32424033]
[1680702691506,0.05498191,28340.0,28339.0,0.32414563]
[1680702692809,0.10598391,28340.0,28339.0,0.32414563]
[1680702693065,0.10674291,28340.0,28339.0,0.32414563]
[1680702693277,0.05498191,28340.0,28339.0,0.32414563]
[1680702693488,0.10641791,28340.0,28339.0,0.32414563]
[1680702693703,0.05498191,28340.0,28339.0,0.32414563]
[1680702693921,0.05498191,28340.0,28338.0,0.09837267]
[1680702694145,0.051248,28339.0,28338.0,0.09819267]
[1680702694567,0.21022336,28340.0,28338.0,0.01529267]
[1680702695209,0.19022336,28340.0,28338.0,0.01529267]
[1680702695422,0.15953284,28339.0,28338.0,0.01629267]
[1680702695675,0.19807684,28339.0,28338.0,0.01529267]
[1680702695890,0.7292174,28339.0,28338.0,0.01629267]
[1680702696109,0.7292174,28339.0,28338.0,0.01529267]
[1680702696735,0.7422174,28339.0,28338.0,0.01629267]
[1680702698713,0.82182411,28339.0,28338.0,0.01629267]
[1680702698926,1.4398273,28339.0,28338.0,2.67e-06]
[1680702699380,1.4400373,28339.0,28338.0,2.67e-06]
[1680702699583,1.46071074,28339.0,28336.0,0.0217]
[1680702699838,0.80661056,28337.0,28336.0,0.0217]
[1680702700053,0.86942656,28337.0,28336.0,0.0217]
[1680702701981,0.96942656,28337.0,28336.0,0.0217]
[1680702702820,0.369,28335.0,28330.0,0.01261965]
[1680702703037,0.56060137,28334.0,28330.0,0.01261965]
[1680702703311,0.17649,28331.0,28330.0,0.01261965]
[1680702703525,0.53120056,28331.0,28330.0,0.01261965]
[1680702704176,0.01261,28330.0,28328.0,0.00018]
[1680702704389,0.40498456,28329.0,28327.0,0.0217]
[1680702704603,0.35492056,28329.0,28327.0,0.03286087]
[1680702705049,0.35492056,28329.0,28327.0,0.0217]
[1680702705471,0.14649415,28328.0,28327.0,0.14828101]
[1680702705683,0.50141471,28328.0,28327.0,0.14828101]
[1680702705895,0.50141471,28328.0,28327.0,0.0217]
[1680702706560,0.52841471,28328.0,28327.0,0.0217]
[1680702708585,0.38192056,28328.0,28327.0,0.14828101]
[1680702709029,0.02721,28328.0,28327.0,0.44527397]
[1680702709255,0.02721,28328.0,28327.0,0.57185498]
[1680702709256,0.027,28328.0,28327.0,0.57185498]
[1680702709456,0.027,28328.0,28327.0,0.69705015]
[1680702709858,0.027,28328.0,28327.0,0.74077077]
[1680702710107,0.027,28328.0,28327.0,0.61435015]
[1680702710322,0.027,28328.0,28327.0,0.61447015]
[1680702710755,0.027,28328.0,28327.0,0.61435015]
[1680702710937,0.18743604,28332.0,28327.0,0.82519787]
[1680702711190,0.18743604,28332.0,28328.0,0.29502392]
[1680702711417,0.15305242,28331.0,28328.0,0.12643893]
[1680702711835,0.00021,28332.0,28329.0,0.12643893]
[1680702712041,0.17710169,28333.0,28329.0,0.12643893]
[1680702712248,0.17710169,28333.0,28328.0,0.29602392]
[1680702712456,0.17710169,28333.0,28329.0,0.12643893]
[1680702712672,0.00021,28333.0,28329.0,0.12643893]
[1680702712906,0.00021,28333.0,28331.0,0.0829]
[1680702713125,0.00021,28335.0,28332.0,0.39170043]
[1680702713362,0.35471056,28335.0,28332.0,0.39170043]
[1680702713582,0.49929466,28335.0,28332.0,0.39170043]
[1680702714036,0.006,28333.0,28332.0,0.39170043]
[1680702714250,0.00021,28333.0,28332.0,0.39170043]
[1680702715125,0.02621,28333.0,28332.0,0.60460066]
[1680702715352,0.05501135,28333.0,28332.0,0.64674949]
[1680702715563,0.026,28333.0,28332.0,1.45202108]
[1680702715776,0.00021,28335.0,28332.0,1.01461052]
[1680702715990,0.00021,28335.0,28333.0,0.0829]
[1680702716208,0.15589252,28335.0,28333.0,0.0829]
[1680702716651,0.00021,28335.0,28333.0,0.16719017]
[1680702716865,0.00021,28336.0,28333.0,0.16719017]
[1680702717078,0.14461061,28337.0,28334.0,0.08429017]
[1680702717288,0.001,28335.0,28333.0,0.17219017]
[1680702717940,0.14461061,28337.0,28333.0,0.16719017]
[1680702718168,0.15931135,28335.0,28334.0,0.001]
[1680702718387,0.15952135,28335.0,28332.0,0.66300069]
[1680702718690,0.15931135,28335.0,28333.0,0.08429017]
[1680702718777,0.15931135,28335.0,28332.0,0.66300069]
[1680702719215,0.51402191,28335.0,28332.0,0.66300069]
[1680702719405,0.51423191,28335.0,28332.0,0.66300069]
[1680702719629,0.51423191,28335.0,28333.0,0.08429017]
[1680702719850,0.52123191,28335.0,28334.0,0.001]
[1680702720059,0.51423191,28335.0,28333.0,0.08429017]
[1680702720280,0.52123191,28335.0,28332.0,0.53756176]
[1680702720488,0.51423191,28335.0,28333.0,0.08429017]
[1680702720693,0.53423191,28335.0,28333.0,0.08429017]
[1680702720903,0.53423191,28335.0,28332.0,0.66300069]
[1680702721109,0.51423191,28335.0,28332.0,0.66300069]
[1680702721312,0.52123191,28335.0,28332.0,0.66400069]
[1680702721720,0.50745425,28334.0,28332.0,0.08529017]
[1680702721937,0.50745425,28334.0,28332.0,0.001]
[1680702721938,0.50766425,28334.0,28332.0,0.001]
[1680702722766,0.50766425,28334.0,28331.0,0.54966077]
[1680702722977,0.51466425,28334.0,28332.0,0.001]
[1680702723108,0.50766425,28334.0,28331.0,0.42322184]
[1680702723324,0.52766425,28334.0,28332.0,0.33672571]
[1680702724243,0.52766425,28334.0,28332.0,0.42101588]
[1680702724452,0.02021,28334.0,28332.0,0.42101588]
[1680702724665,0.02,28334.0,28332.0,0.42101588]
[1680702725326,0.02,28334.0,28332.0,0.33672571]
[1680702725547,0.02,28334.0,28332.0,0.42101588]
[1680702725757,0.02,28334.0,28331.0,0.2108491]
[1680702725969,0.31805196,28333.0,28331.0,0.08429017]
[1680702726652,0.31797556,28333.0,28331.0,0.08429017]
[1680702726885,0.31797556,28333.0,28330.0,0.55910045]
[1680702727091,0.33097556,28333.0,28331.0,0.08529017]
[1680702727495,0.35471056,28332.0,28331.0,0.08529017]
[1680702727706,0.35471056,28332.0,28331.0,0.08541017]
[1680702728547,0.35471056,28332.0,28331.0,0.08441017]
[1680702729210,0.34898992,28332.0,28331.0,0.08429017]
[1680702729420,0.38647971,28332.0,28331.0,0.12643893]
[1680702729642,0.39947971,28332.0,28331.0,1.88243893]
[1680702729849,0.39947971,28332.0,28331.0,1.88261893]
[1680702730077,0.39947971,28332.0,28331.0,1.84048074]
[1680702730280,0.54927064,28332.0,28331.0,1.84048074]
[1680702730497,0.54927064,28332.0,28331.0,1.75612]
[1680702730715,0.54948064,28332.0,28331.0,1.756]
[1680702733742,0.45136971,28332.0,28331.0,1.756]
[1680702734005,1.36497368,28332.0,28331.0,1.61083153]
[1680702734428,1.29396971,28332.0,28331.0,1.61083153]
[1680702734661,1.28096971,28332.0,28331.0,1.61083153]
[1680702735150,1.30796971,28332.0,28331.0,1.61083153]
[1680702735325,1.28096971,28332.0,28331.0,1.61083153]
[1680702735564,1.30796971,28332.0,28331.0,1.61083153]
[1680702735765,1.47751368,28332.0,28331.0,1.61083153]
[1680702735972,1.45051368,28332.0,28331.0,1.61083153]
[1680702736175,1.30796971,28332.0,28331.0,1.61083153]
[1680702736382,1.28096971,28332.0,28331.0,1.61083153]
[1680702736586,1.30796971,28332.0,28331.0,1.61083153]
[1680702737821,1.28096971,28332.0,28331.0,1.61083153]
[1680702738030,2.09380764,28332.0,28331.0,1.61083153]
[1680702738238,2.06680764,28332.0,28331.0,1.61083153]
[1680702738661,2.09380764,28332.0,28331.0,1.61083153]
[1680702738868,2.27780764,28332.0,28331.0,1.61083153]
[1680702739075,2.30480764,28332.0,28331.0,1.41853866]
[1680702739275,2.27780764,28332.0,28331.0,1.41853866]
[1680702739478,2.30480764,28332.0,28331.0,1.41853866]
[1680702740440,2.30480764,28332.0,28330.0,0.00018]
[1680702740441,1.25525056,28331.0,28330.0,0.00018]
[1680702740646,1.25525056,28331.0,28327.0,0.0217]
[1680702740647,3.25852532,28331.0,28327.0,0.0217]
[1680702740813,1.06494056,28328.0,28327.0,0.0217]
[1680702741013,1.41988256,28328.0,28327.0,0.0217]
[1680702741416,1.48078256,28328.0,28327.0,0.0217]
[1680702741615,1.26978256,28328.0,28327.0,0.0217]
[1680702741840,1.45539256,28328.0,28327.0,0.0217]
[1680702742057,1.42839256,28328.0,28327.0,0.0217]
[1680702742474,1.45539256,28328.0,28327.0,0.0217]
[1680702743718,1.42839256,28328.0,28327.0,0.0217]
[1680702743932,2.25832578,28328.0,28325.0,0.0217]
[1680702744142,2.25832578,28328.0,28319.0,0.15071333]
[1680702744143,0.68,28324.0,28320.0,0.00018]
[1680702744343,0.68,28324.0,28319.0,0.15071333]
[1680702744344,0.61348056,28321.0,28319.0,0.15071333]
[1680702744468,0.052224,28320.0,28319.0,0.15089333]
[1680702744674,0.40693456,28320.0,28319.0,0.15071333]
[1680702745282,0.89383456,28320.0,28319.0,0.15071333]
[1680702745685,0.89383456,28320.0,28319.0,0.15077333]
[1680702745892,0.89383456,28320.0,28319.0,0.15071333]
[1680702746295,1.21198602,28320.0,28319.0,0.11851921]
[1680702746500,1.05322056,28319.0,28316.0,0.0219466]
[1680702746698,1.05322056,28319.0,28316.0,0.0214256]
[1680702746699,0.72371056,28317.0,28316.0,0.0214256]
[1680702746899,1.25109556,28317.0,28316.0,0.0214256]
[1680702747552,1.26861427,28317.0,28316.0,0.0214256]
[1680702747844,1.48909556,28317.0,28316.0,0.0214256]
[1680702748056,1.6470668,28317.0,28316.0,0.0214256]
[1680702748267,0.80449556,28317.0,28316.0,0.0214256]
[1680702748474,0.80470556,28317.0,28316.0,0.0214256]
[1680702748677,0.80449556,28317.0,28316.0,0.0214256]
[1680702748884,0.88739556,28317.0,28316.0,0.0214256]
[1680702749981,0.86039556,28317.0,28316.0,0.0214256]
[1680702750183,0.88739556,28317.0,28316.0,0.0214256]
[1680702750394,0.77770556,28317.0,28316.0,0.0214256]
[1680702750599,0.40849556,28317.0,28316.0,0.0214256]
[1680702750803,0.89519556,28317.0,28316.0,0.0214256]
[1680702751011,0.86819556,28317.0,28316.0,0.0214256]
[1680702751215,0.43549556,28317.0,28316.0,0.0214256]
[1680702751420,0.40849556,28317.0,28316.0,0.0214256]
[1680702751630,0.80449556,28317.0,28316.0,0.0214256]
[1680702752041,0.94858612,28317.0,28316.0,0.0214256]
[1680702752456,0.95708612,28317.0,28316.0,0.0214256]
[1680702752666,0.40849556,28317.0,28316.0,0.0214256]
[1680702753700,0.43549556,28317.0,28316.0,0.33801721]
[1680702753901,0.35471056,28317.0,28316.0,0.33819721]
[1680702756391,0.35471056,28317.0,28316.0,0.35359281]
[1680702756647,0.38171056,28317.0,28316.0,0.35359281]
[1680702756854,0.35471056,28317.0,28316.0,0.35359281]
[1680702757062,0.38171056,28317.0,28316.0,0.35359281]
[1680702757275,0.027,28317.0,28316.0,0.35359281]
[1680702757489,0.027,28317.0,28316.0,0.0216056]
[1680702757700,0.027,28317.0,28316.0,0.0214256]
[1680702758132,0.17674,28323.0,28316.0,0.1043256]
[1680702758343,0.17656,28318.0,28316.0,0.0214256]
[1680702758551,0.00021,28320.0,28316.0,0.0214256]
[1680702758766,0.35471056,28319.0,28316.0,0.0214256]
[1680702758973,0.00021,28320.0,28316.0,0.0214256]
[1680702759181,0.00021,28322.0,28316.0,0.0214256]
[1680702759388,0.00021,28322.0,28316.0,0.0224256]
[1680702759389,0.007,28317.0,28316.0,0.0224256]
[1680702759598,0.007,28317.0,28316.0,0.3224256]
[1680702760240,0.03152896,28318.0,28316.0,0.3214256]
[1680702760469,0.35492056,28322.0,28317.0,0.3]
[1680702760678,0.35471056,28321.0,28317.0,0.3]
[1680702760888,0.001,28320.0,28317.0,0.3]
[1680702761096,0.35492056,28321.0,28317.0,0.3]
[1680702761097,0.00021,28321.0,28317.0,0.3]
[1680702761319,0.001,28318.0,28317.0,0.3]
[1680702761529,0.001,28318.0,28317.0,0.0829]
[1680702761925,0.001,28318.0,28316.0,0.3374256]
[1680702762195,0.001,28318.0,28317.0,0.0827]
[1680702762421,0.35492056,28324.0,28317.0,0.0827]
[1680702762422,0.00021,28324.0,28317.0,0.0827]
[1680702762634,0.14210681,28327.0,28318.0,0.0829]
[1680702762882,0.00021,28327.0,28319.0,0.35471056]
[1680702763111,0.17671,28329.0,28320.0,0.3829]
[1680702763345,0.53142056,28329.0,28320.0,0.73761056]
[1680702763545,0.03171123,28326.0,28320.0,0.73761056]
[1680702763764,0.03171123,28326.0,28323.0,0.0829]
[1680702763974,0.03171123,28326.0,28321.0,0.0829]
[1680702764270,0.03171123,28326.0,28323.0,0.5829]
[1680702764465,0.00021,28333.0,28325.0,0.0829]
[1680702764668,0.53118056,28333.0,28326.0,0.4958]
[1680702764882,0.35471056,28332.0,28327.0,0.3]
[1680702765093,0.35492056,28332.0,28327.0,0.3]
[1680702765303,0.35471056,28332.0,28328.0,0.45216723]
[1680702765520,0.17648,28331.0,28328.0,0.45222723]
[1680702765731,0.35471056,28332.0,28328.0,0.45234723]
[1680702765732,0.00021,28332.0,28328.0,0.45234723]
[1680702765949,0.35471056,28332.0,28328.0,0.45216723]
[1680702766155,0.35471056,28332.0,28328.0,0.45222723]
[1680702766364,0.02716738,28331.0,28328.0,0.00106]
[1680702766581,0.02716738,28331.0,28330.0,0.0827]
[1680702767446,0.02387001,28337.0,28330.0,0.0827]
[1680702767651,0.02387001,28337.0,28332.0,0.0829]
[1680702767879,0.02387001,28337.0,28330.0,0.4359]
[1680702768110,0.02387001,28337.0,28333.0,0.32262216]
[1680702769165,0.52047738,28337.0,28331.0,0.30018]
[1680702769471,0.17646,28335.0,28333.0,0.002]
[1680702769657,0.17646,28335.0,28333.0,0.20974696]
[1680702769658,0.35471056,28334.0,28333.0,0.20974696]
[1680702769865,0.35492056,28334.0,28333.0,0.20974696]
[1680702770074,0.35492056,28334.0,28333.0,0.20774696]
[1680702770290,0.00021,28334.0,28333.0,0.20774696]
[1680702770498,0.02387001,28337.0,28333.0,0.20774696]
[1680702770709,0.53117056,28335.0,28331.0,0.30018]
[1680702770913,0.53117056,28335.0,28332.0,0.44649073]
[1680702771128,0.00021,28335.0,28332.0,0.44649073]
[1680702771335,0.02408001,28337.0,28333.0,0.002]
[1680702771553,0.55503057,28337.0,28333.0,0.002]
[1680702771753,0.053886,28336.0,28332.0,0.44649073]
[1680702772006,0.37879057,28337.0,28332.0,0.44649073]
[1680702772181,0.14589321,28335.0,28332.0,0.28713994]
[1680702772397,0.17128339,28335.0,28332.0,0.28713994]
[1680702772604,0.17128339,28335.0,28333.0,0.002]
[1680702772834,0.32759224,28334.0,28331.0,6e-05]
[1680702773047,0.32759224,28334.0,28328.0,0.33507]
[1680702773048,0.13242696,28333.0,28332.0,0.008]
[1680702773269,0.54194452,28333.0,28328.0,0.67498038]
[1680702773492,0.1765,28329.0,28327.0,0.00018]
[1680702773708,0.49660737,28328.0,28325.0,0.3514585]
[1680702773925,0.14189681,28327.0,28326.0,0.3387417]
[1680702774139,0.35471056,28327.0,28326.0,0.3388617]
[1680702774343,0.35471056,28327.0,28326.0,0.3388017]
[1680702774570,0.35471056,28327.0,28326.0,6e-05]
[1680702774777,0.35471056,28327.0,28324.0,0.40448]
[1680702775000,0.35471056,28326.0,28324.0,0.34003949]
[1680702775414,0.35471056,28326.0,28325.0,0.36866137]
[1680702775622,0.35471056,28326.0,28325.0,0.00018]
[1680702775865,0.12790195,28327.0,28324.0,0.32471215]